Departmental Area,Entity,Payment Date,Expense type,Expense Area,Supplier Name,Payment Reference,    Invoice Distribution Amount    ,Description,Supplier Type,Expenditure Type
UK Statistics Family,Office for National Statistics,01/07/2022,EXP - PURCHASE OF GOODS/SERVICES - DATA ACQUISITION,Productivity Research And Professional Development,Ipsos MORI,233168,"29,218.80",Statistical Services,Large,Programme Expenditure
UK Statistics Family,Office for National Statistics,01/07/2022,Exp - Purchase Of Goods/Services - Contractors,Digital Media,Certes Computing Ltd,233169,"11,208.76",Information Management Services,SME,Programme Expenditure
UK Statistics Family,Office for National Statistics,01/07/2022,Exp - Purchase Of Goods/Services - Contractors,Strategy And Architecture,Certes Computing Ltd,233169,"7,200.00",Information Management Services,SME,Programme Expenditure
UK Statistics Family,Office for National Statistics,01/07/2022,Exp - Purchase Of Goods/Services - Contractors,Tech Delivery Legacy Sp,Certes Computing Ltd,233169,"8,400.00",Information Management Services,SME,Programme Expenditure
UK Statistics Family,Office for National Statistics,01/07/2022,Exp - Purchase Of Goods/Services - Contractors,Testing,La International,233170,"11,834.52",Information Management Services,SME,Programme Expenditure
UK Statistics Family,Office for National Statistics,01/07/2022,Exp - Purchase Of Goods/Services - Contractors,Testing,La International,233170,"6,593.82",Information Management Services,SME,Programme Expenditure
UK Statistics Family,Office for National Statistics,01/07/2022,Exp - Purchase Of Goods/Services - Contractors,Testing,La International,233170,"4,797.91",Information Management Services,SME,Programme Expenditure
UK Statistics Family,Office for National Statistics,01/07/2022,Exp - Purchase Of Goods/Services - Contractors,Digital Publishing,La International,233170,"3,593.40",Information Management Services,SME,Programme Expenditure
UK Statistics Family,Office for National Statistics,01/07/2022,Exp - Purchase Of Goods/Services - Contractors,STRATEGY SYNTHESIS AND CO-ORDINATION,La International,233170,"3,156.90",Information Management Services,SME,Programme Expenditure
UK Statistics Family,Office for National Statistics,01/07/2022,Exp - Purchase Of Goods/Services - Contractors,Researcher Support And Data Access ,La International,233170,"7,184.16",Information Management Services,SME,Programme Expenditure
UK Statistics Family,Office for National Statistics,01/07/2022,Exp - Purchase Of Goods/Services - Contractors,Data Architecture,La International,233170,"68,091.07",Information Management Services,SME,Programme Expenditure
UK Statistics Family,Office for National Statistics,01/07/2022,Exp - Purchase Of Goods/Services - Contractors,Data Architecture,La International,233170,"2,568.71",Information Management Services,SME,Programme Expenditure
UK Statistics Family,Office for National Statistics,01/07/2022,Exp - Purchase Of Goods/Services - Contractors,CLOUD ARCHITECTURE,La International,233170,"2,499.01",Information Management Services,SME,Programme Expenditure
UK Statistics Family,Office for National Statistics,01/07/2022,Exp - Purchase Of Goods/Services - Contractors,Tech Delivery Legacy Sp,La International,233170,"9,163.04",Information Management Services,SME,Programme Expenditure
UK Statistics Family,Office for National Statistics,01/07/2022,Exp - Purchase Of Goods/Services - Contractors,Tech Delivery Legacy Sp,La International,233170,"4,701.18",Information Management Services,SME,Programme Expenditure
UK Statistics Family,Office for National Statistics,01/07/2022,Exp - Purchase Of Goods/Services - Contractors,Tech Delivery Data As A Platform,La International,233170,"1,249.52",Information Management Services,SME,Programme Expenditure
UK Statistics Family,Office for National Statistics,01/07/2022,Exp - Purchase Of Goods/Services - Contractors,Tech Delivery Data As A Platform,La International,233170,"2,388.71",Information Management Services,SME,Programme Expenditure
UK Statistics Family,Office for National Statistics,01/07/2022,Exp - Purchase Of Goods/Services - Contractors,IT Applications,La International,233170,"28,430.71",Information Management Services,SME,Programme Expenditure
UK Statistics Family,Office for National Statistics,01/07/2022,Exp - Purchase Of Goods/Services - Contractors,IT Operations,La International,233170,"20,082.78",Information Management Services,SME,Programme Expenditure
UK Statistics Family,Office for National Statistics,01/07/2022,EXP - PURCHASE OF GOODS/SERVICES - DATA ACQUISITION,Data As A Service,Deloitte,233172,"45,126.00",Information Management Services,Large,Programme Expenditure
UK Statistics Family,Office for National Statistics,01/07/2022,End User Software And Hardware,Tech Delivery Next Gen IT And Infrastructure,Computacenter (Uk) Limited,233176,"3,534.34",Software Licenses,Large,Programme Expenditure
UK Statistics Family,Office for National Statistics,01/07/2022,"ICT Outsourcing, Maintenance And Support",IT Operations,Computacenter (Uk) Limited,233176,"22,416.00",Software Licenses,Large,Programme Expenditure
UK Statistics Family,Office for National Statistics,01/07/2022,End User Software And Hardware,IT Operations,Computacenter (Uk) Limited,233176,"75,116.03",Software Licenses,Large,Programme Expenditure
UK Statistics Family,Office for National Statistics,01/07/2022,EXP - PURCHASE OF GOODS/SERVICES -  NON IT CONTRACTUAL PAYMENTS,ANALYTICAL ENGAGEMENT AND IMPACT,RSM Risk Assurance Services LLP,233185,"98,128.80",Consultancy,SME,Programme Expenditure
UK Statistics Family,Office for National Statistics,01/07/2022,Exp - Short-Term Contract & Agency Staff - Full Cost,Strategy And Engagement,Malikshaw Interim & Executive,233186,"4,622.56",Information Management Services,SME,Programme Expenditure
UK Statistics Family,Office for National Statistics,01/07/2022,Exp - Short-Term Contract & Agency Staff - Full Cost,Data Architecture,Malikshaw Interim & Executive,233186,"12,974.33",Information Management Services,SME,Programme Expenditure
UK Statistics Family,Office for National Statistics,01/07/2022,Exp - Purchase Of Goods/Services - Contractors,IT Operations,Malikshaw Interim & Executive,233186,"22,440.00",Information Management Services,SME,Programme Expenditure
UK Statistics Family,Office for National Statistics,01/07/2022,Fixtures & Fittings At Cost - Additions,Property Newport,Gresham Office Furniture Limited,233187,"101,909.86",Office Furniture,SME,Programme Expenditure
UK Statistics Family,Office for National Statistics,01/07/2022,Fixtures & Fittings At Cost - Additions,Property Titchfield,Gresham Office Furniture Limited,233187,"58,590.00",Office Furniture,SME,Programme Expenditure
UK Statistics Family,Office for National Statistics,01/07/2022,Exp - Purchase Of Goods/Services - IT Contractual Services,CLOUD ARCHITECTURE,CTS (Cloud Technology Solutions Ltd),233188,"32,877.60",Information Management Services,Large,Programme Expenditure
UK Statistics Family,Office for National Statistics,01/07/2022,Training & Development,Office Of Chief Data And Information,CTS (Cloud Technology Solutions Ltd),233188,"12,780.00",Information Management Services,Large,Programme Expenditure
UK Statistics Family,Office for National Statistics,01/07/2022,Surveys,ECONOMIC CHANGE,Bureau Van Dijk Electronic Publishing,233190,"70,500.00",Data Acquisition,SME,Programme Expenditure
UK Statistics Family,Office for National Statistics,01/07/2022,Exp - Purchase Of Goods/Services - IT Contractual Services,PARTNERSHIP DEVELOPMENT,CGI IT UK Limited,233199,"118,730.96",Information Management Services,Large,Programme Expenditure
UK Statistics Family,Office for National Statistics,01/07/2022,Hosting,CLOUD ARCHITECTURE,Amazon Web Services Inc,233200,"259,818.23",Information Management Services,Large,Programme Expenditure
UK Statistics Family,Office for National Statistics,01/07/2022,Hosting,CDIO UNGP,Amazon Web Services Inc,233200,"-3,016.82",Information Management Services,Large,Programme Expenditure
UK Statistics Family,Office for National Statistics,01/07/2022,Exp - Purchase Of Goods/Services - IT Contractual Services,IT Applications,Diegesis Limited,233202,"171,000.00",Information Management Services,Large,Programme Expenditure
UK Statistics Family,Office for National Statistics,01/07/2022,Exp - Purchase Of Goods And Services Consultants,2023 CENSUS DATA TRANSFORMATION,The Sensible Code Company,233203,"126,241.20",Statistical Services,SME,Programme Expenditure
UK Statistics Family,Office for National Statistics,01/07/2022,Exp - Purchase Of Goods/Services - Incentive Payments,Survey Management,Sodexo Motivation Solutions U.K. ltd,233204,"1,021.20",Survey Response Incentive Vouchers,Large,Programme Expenditure
UK Statistics Family,Office for National Statistics,01/07/2022,Exp - Purchase Of Goods/Services - Incentive Payments,Covid Infection Survey,Sodexo Motivation Solutions U.K. ltd,233204,"168,016.44",Survey Response Incentive Vouchers,Large,Programme Expenditure
UK Statistics Family,Office for National Statistics,01/07/2022,Exp - Purchase Of Goods/Services - Incentive Payments,Best Practice And Impact,Sodexo Motivation Solutions U.K. ltd,233204,192.42,Survey Response Incentive Vouchers,Large,Programme Expenditure
UK Statistics Family,Office for National Statistics,01/07/2022,Exp - Short-Term Contract & Agency Staff - Full Cost,Recruitment ,SmartSourcing Ltd,233207,586.08,Information Management Services,SME,Programme Expenditure
UK Statistics Family,Office for National Statistics,01/07/2022,Exp - Purchase Of Goods/Services - Contractors,Data Architecture,SmartSourcing Ltd,233207,"16,186.18",Information Management Services,SME,Programme Expenditure
UK Statistics Family,Office for National Statistics,01/07/2022,Exp - Purchase Of Goods/Services - Contractors,Data Architecture,SmartSourcing Ltd,233207,"11,507.72",Information Management Services,SME,Programme Expenditure
UK Statistics Family,Office for National Statistics,01/07/2022,Exp - Purchase Of Goods/Services - Contractors,Data Architecture,SmartSourcing Ltd,233207,"1,438.46",Information Management Services,SME,Programme Expenditure
UK Statistics Family,Office for National Statistics,01/07/2022,Exp - Purchase Of Goods/Services - Contractors,Tech Delivery Next Gen IT And Infrastructure,SmartSourcing Ltd,233207,"1,558.46",Information Management Services,SME,Programme Expenditure
UK Statistics Family,Office for National Statistics,01/07/2022,Exp - Purchase Of Goods/Services - Contractors,IT Operations,SmartSourcing Ltd,233207,"13,486.18",Information Management Services,SME,Programme Expenditure
UK Statistics Family,Office for National Statistics,01/07/2022,Exp - Purchase Of Goods/Services - Contractors,IT Operations,SmartSourcing Ltd,233207,"5,454.63",Information Management Services,SME,Programme Expenditure
UK Statistics Family,Office for National Statistics,01/07/2022,Stationery,Ask Business Services,Banner Group Ltd,233214,"7,628.57",Stationery,SME,Programme Expenditure
UK Statistics Family,Office for National Statistics,01/07/2022,Exp - Purchase Of Goods/Services - Incentive Payments,Survey Management,Banner Group Ltd,233214,"78,900.00",Stationery,SME,Programme Expenditure
UK Statistics Family,Office for National Statistics,01/07/2022,Exp - Purchase Of Goods/Services - Contractors,Testing,Parity Resources Limited,233215,"30,655.68",Information Management Services,Large,Programme Expenditure
UK Statistics Family,Office for National Statistics,01/07/2022,Exp - Purchase Of Goods/Services - Contractors,Covid Infection Survey,Parity Resources Limited,233215,"4,790.08",Information Management Services,Large,Programme Expenditure
UK Statistics Family,Office for National Statistics,01/07/2022,Exp - Purchase Of Goods/Services - Contractors,Analysis Microdata And Engagement,Parity Resources Limited,233215,961.2,Information Management Services,Large,Programme Expenditure
UK Statistics Family,Office for National Statistics,01/07/2022,Exp - Short-Term Contract & Agency Staff - Full Cost,Recruitment ,Parity Resources Limited,233215,"1,524.60",Information Management Services,Large,Programme Expenditure
UK Statistics Family,Office for National Statistics,01/07/2022,Exp - Purchase Of Goods/Services - Contractors,Security Advisory,Parity Resources Limited,233215,"4,510.50",Information Management Services,Large,Programme Expenditure
UK Statistics Family,Office for National Statistics,01/07/2022,Exp - Purchase Of Goods/Services - Contractors,CLOUD ARCHITECTURE,Parity Resources Limited,233215,"7,200.00",Information Management Services,Large,Programme Expenditure
UK Statistics Family,Office for National Statistics,01/07/2022,Exp - Purchase Of Goods/Services - Contractors,CLOUD ARCHITECTURE,Parity Resources Limited,233215,"11,663.70",Information Management Services,Large,Programme Expenditure
UK Statistics Family,Office for National Statistics,01/07/2022,Exp - Purchase Of Goods/Services - Contractors,Strategy And Architecture,Parity Resources Limited,233215,"16,420.96",Information Management Services,Large,Programme Expenditure
UK Statistics Family,Office for National Statistics,01/07/2022,Exp - Purchase Of Goods/Services - Contractors,Strategy And Architecture,Parity Resources Limited,233215,"10,098.00",Information Management Services,Large,Programme Expenditure
UK Statistics Family,Office for National Statistics,01/07/2022,Exp - Purchase Of Goods/Services - Contractors,IT Applications,Parity Resources Limited,233215,"14,873.40",Information Management Services,Large,Programme Expenditure
UK Statistics Family,Office for National Statistics,01/07/2022,Exp - Purchase Of Goods/Services - Contractors,IT Operations,Parity Resources Limited,233215,"43,735.50",Information Management Services,Large,Programme Expenditure
UK Statistics Family,Office for National Statistics,01/07/2022,Exp - Short-Term Contract & Agency Staff - Full Cost,Covid Infection Survey,Talent International,233225,"5,932.68",Information Management Services,SME,Programme Expenditure
UK Statistics Family,Office for National Statistics,01/07/2022,Exp - Purchase Of Goods/Services - Contractors,Covid Infection Survey,Talent International,233225,"11,050.00",Information Management Services,SME,Programme Expenditure
UK Statistics Family,Office for National Statistics,01/07/2022,Exp - Short-Term Contract & Agency Staff - Full Cost,WIDER SURVEILLANCE STUDIES,Talent International,233225,"2,402.93",Information Management Services,SME,Programme Expenditure
UK Statistics Family,Office for National Statistics,01/07/2022,Exp - Short-Term Contract & Agency Staff - Full Cost,Business Architecture Transformation And Statistical Strategy,Talent International,233225,"2,717.28",Information Management Services,SME,Programme Expenditure
UK Statistics Family,Office for National Statistics,01/07/2022,Exp - Purchase Of Goods/Services - Contractors,Data Architecture,Talent International,233225,"45,900.00",Information Management Services,SME,Programme Expenditure
UK Statistics Family,Office for National Statistics,01/07/2022,Exp - Purchase Of Goods/Services - Contractors,Data Architecture,Talent International,233225,"28,680.00",Information Management Services,SME,Programme Expenditure
UK Statistics Family,Office for National Statistics,01/07/2022,Exp - Purchase Of Goods/Services - Contractors,Data Architecture,Talent International,233225,"3,840.00",Information Management Services,SME,Programme Expenditure
UK Statistics Family,Office for National Statistics,01/07/2022,Exp - Purchase Of Goods/Services - Contractors,IT Applications,Talent International,233225,"13,657.20",Information Management Services,SME,Programme Expenditure
UK Statistics Family,Office for National Statistics,01/07/2022,Exp - Purchase Of Goods/Services - Contractors,IT Operations,Talent International,233225,"2,400.00",Information Management Services,SME,Programme Expenditure
UK Statistics Family,Office for National Statistics,01/07/2022,Surveys,Prices Division,Kantar Public UK Ltd.,233235,"225,423.80",Statistical Services,SME,Programme Expenditure
UK Statistics Family,Office for National Statistics,01/07/2022,Exp - Purchase Of Goods/Services - IT Contractual Services,Digital Publishing,Swirrl It Ltd,233242,"71,640.00",Information Management Services,SME,Programme Expenditure
UK Statistics Family,Office for National Statistics,01/07/2022,Surveys,Social Surveys Division,Natcen Social Research,233244,"1,013,363.69",Statistical Services,Large,Programme Expenditure
UK Statistics Family,Office for National Statistics,01/07/2022,Exp - Purchase Of Goods/Services - Incentive Payments,Social Surveys Division,Natcen Social Research,233244,"30,294.60",Statistical Services,Large,Programme Expenditure
UK Statistics Family,Office for National Statistics,01/07/2022,FM Contract Payments,Vinci Payments,Vinci Construction UK Limited,233247,"343,846.86",Facilities Mangement Services,Large,Programme Expenditure
UK Statistics Family,Office for National Statistics,01/07/2022,Exp - Purchase Of Goods/Services - Contractors,Data Architecture,Empiric Solutions Limited,233248,"42,402.00",Information Management Services,Large,Programme Expenditure
UK Statistics Family,Office for National Statistics,01/07/2022,Exp - Purchase Of Goods/Services - Contractors,Consultancy Management,Concept Information Technology Ltd T/A Concept Resourcing,233249,"1,433.09",Information Management Services,Large,Programme Expenditure
UK Statistics Family,Office for National Statistics,01/07/2022,Exp - Short-Term Contract & Agency Staff - Full Cost,Business Change Support,Concept Information Technology Ltd T/A Concept Resourcing,233249,823.7,Information Management Services,Large,Programme Expenditure
UK Statistics Family,Office for National Statistics,01/07/2022,Exp - Short-Term Contract & Agency Staff - Full Cost,Business Change Support,Concept Information Technology Ltd T/A Concept Resourcing,233249,627.29,Information Management Services,Large,Programme Expenditure
UK Statistics Family,Office for National Statistics,01/07/2022,Exp - Short-Term Contract & Agency Staff - Full Cost,N A Coordination,Concept Information Technology Ltd T/A Concept Resourcing,233249,"2,059.27",Information Management Services,Large,Programme Expenditure
UK Statistics Family,Office for National Statistics,01/07/2022,Exp - Short-Term Contract & Agency Staff - Full Cost,N A Coordination,Concept Information Technology Ltd T/A Concept Resourcing,233249,"5,971.88",Information Management Services,Large,Programme Expenditure
UK Statistics Family,Office for National Statistics,01/07/2022,Exp - Short-Term Contract & Agency Staff - Full Cost,International Trade And Transactions,Concept Information Technology Ltd T/A Concept Resourcing,233249,"2,284.12",Information Management Services,Large,Programme Expenditure
UK Statistics Family,Office for National Statistics,01/07/2022,Exp - Short-Term Contract & Agency Staff - Full Cost,Productivity Research And Professional Development,Concept Information Technology Ltd T/A Concept Resourcing,233249,"5,645.56",Information Management Services,Large,Programme Expenditure
UK Statistics Family,Office for National Statistics,01/07/2022,Exp - Short-Term Contract & Agency Staff - Full Cost,Ask Business Services,Concept Information Technology Ltd T/A Concept Resourcing,233249,"1,620.16",Information Management Services,Large,Programme Expenditure
UK Statistics Family,Office for National Statistics,01/07/2022,Exp - Short-Term Contract & Agency Staff - Full Cost,Crime Income And Wealth,Concept Information Technology Ltd T/A Concept Resourcing,233249,"9,136.46",Information Management Services,Large,Programme Expenditure
UK Statistics Family,Office for National Statistics,01/07/2022,Exp - Short-Term Contract & Agency Staff - Full Cost,Crime Income And Wealth,Concept Information Technology Ltd T/A Concept Resourcing,233249,"9,136.46",Information Management Services,Large,Programme Expenditure
UK Statistics Family,Office for National Statistics,01/07/2022,Exp - Short-Term Contract & Agency Staff - Full Cost,Crime Income And Wealth,Concept Information Technology Ltd T/A Concept Resourcing,233249,"5,841.74",Information Management Services,Large,Programme Expenditure
UK Statistics Family,Office for National Statistics,01/07/2022,Exp - Purchase Of Goods/Services - IT Contractual Services,Tech Delivery Legacy Sp,Concept Information Technology Ltd T/A Concept Resourcing,233249,"12,600.00",Information Management Services,Large,Programme Expenditure
UK Statistics Family,Office for National Statistics,01/07/2022,Exp - Short-Term Contract & Agency Staff - Full Cost,Data Science Campus,Concept Information Technology Ltd T/A Concept Resourcing,233249,"4,324.47",Information Management Services,Large,Programme Expenditure
UK Statistics Family,Office for National Statistics,01/07/2022,Exp - Short-Term Contract & Agency Staff - Full Cost,Public Sector And Households,Concept Information Technology Ltd T/A Concept Resourcing,233249,"3,923.74",Information Management Services,Large,Programme Expenditure
UK Statistics Family,Office for National Statistics,01/07/2022,Exp - Short-Term Contract & Agency Staff - Full Cost,Public Sector And Households,Concept Information Technology Ltd T/A Concept Resourcing,233249,"1,029.64",Information Management Services,Large,Programme Expenditure
UK Statistics Family,Office for National Statistics,01/07/2022,Exp - Short-Term Contract & Agency Staff - Full Cost,Business Statistics Transformation,Concept Information Technology Ltd T/A Concept Resourcing,233249,"2,211.74",Information Management Services,Large,Programme Expenditure
UK Statistics Family,Office for National Statistics,01/07/2022,Exp - Short-Term Contract & Agency Staff - Full Cost,Social Surveys Division,Concept Information Technology Ltd T/A Concept Resourcing,233249,"2,882.98",Information Management Services,Large,Programme Expenditure
UK Statistics Family,Office for National Statistics,01/07/2022,Exp - Short-Term Contract & Agency Staff - Full Cost,Prices Division,Concept Information Technology Ltd T/A Concept Resourcing,233249,"4,710.84",Information Management Services,Large,Programme Expenditure
UK Statistics Family,Office for National Statistics,01/07/2022,Exp - Short-Term Contract & Agency Staff - Full Cost,Prices Division,Concept Information Technology Ltd T/A Concept Resourcing,233249,"9,472.66",Information Management Services,Large,Programme Expenditure
UK Statistics Family,Office for National Statistics,01/07/2022,Exp - Short-Term Contract & Agency Staff - Full Cost,Corporations,Concept Information Technology Ltd T/A Concept Resourcing,233249,"2,719.64",Information Management Services,Large,Programme Expenditure
UK Statistics Family,Office for National Statistics,01/07/2022,"ICT Outsourcing, Maintenance And Support",Finance,Scc,233252,"8,965.28",Software Licenses,Large,Programme Expenditure
UK Statistics Family,Office for National Statistics,01/07/2022,Exp - Purchase Of Goods/Services - Other ICT Costs Software,Finance,Scc,233252,"154,286.88",Software Licenses,Large,Programme Expenditure
UK Statistics Family,Office for National Statistics,04/07/2022,Hosting,IT Operations,Crown Hosting Data Centres Limited,233429,"25,781.79",Information Management Services,SME,Programme Expenditure
UK Statistics Family,Office for National Statistics,04/07/2022,Exp - Purchase Of Goods/Services - IT Contractual Services,IT Operations,Ibm United Kingdom Ltd,233432,"31,434.00",Information Management Services,Large,Programme Expenditure
UK Statistics Family,Office for National Statistics,04/07/2022,Postage,Survey Processing Centre,DHL Parcel Ltd,233433,"35,137.03",Postage Services,Large,Programme Expenditure
UK Statistics Family,Office for National Statistics,04/07/2022,Exp - Purchase Of Goods/Services - Contractors,Data Architecture,Certes Computing Ltd,233435,"14,112.58",Information Management Services,SME,Programme Expenditure
UK Statistics Family,Office for National Statistics,04/07/2022,Exp - Purchase Of Goods/Services - Contractors,Data Architecture,Certes Computing Ltd,233435,"16,524.65",Information Management Services,SME,Programme Expenditure
UK Statistics Family,Office for National Statistics,04/07/2022,Exp - Purchase Of Goods/Services - Contractors,Data Architecture,SmartSourcing Ltd,233445,"32,584.90",Information Management Services,SME,Programme Expenditure
UK Statistics Family,Office for National Statistics,04/07/2022,Exp - Purchase Of Goods/Services - IT Contractual Services,Digital Publishing,Armakuni Ltd,233447,"48,720.00",Information Management Services,SME,Programme Expenditure
UK Statistics Family,Office for National Statistics,04/07/2022,Other Goods And Services,ONS Corporate Funds,Edenred (UK Group) Limited,233448,"49,450.00",Performance Reward Vouchers,Large,Programme Expenditure
UK Statistics Family,Office for National Statistics,04/07/2022,"ICT Outsourcing, Maintenance And Support",Researcher Support And Data Access ,Equiniti-TopLevel,233449,"44,712.00",Information Management Services,SME,Programme Expenditure
UK Statistics Family,Office for National Statistics,04/07/2022,Hosting,IT Operations,Equiniti-TopLevel,233449,"5,215.79",Information Management Services,SME,Programme Expenditure
UK Statistics Family,Office for National Statistics,04/07/2022,Exp - Purchase Of Goods/Services - Contractors,Data Architecture,Talent International,233455,"26,459.78",Information Management Services,SME,Programme Expenditure
UK Statistics Family,Office for National Statistics,04/07/2022,Exp - Purchase Of Goods/Services - Contractors,Data Architecture,Talent International,233455,"16,178.40",Information Management Services,SME,Programme Expenditure
UK Statistics Family,Office for National Statistics,04/07/2022,Exp - Purchase Of Goods/Services - Contractors,IT Operations,Talent International,233455,"3,000.00",Information Management Services,SME,Programme Expenditure
UK Statistics Family,Office for National Statistics,04/07/2022,Exp - Purchase Of Goods/Services - Contractors,Digital Delivery,Talent International,233455,"11,684.40",Information Management Services,SME,Programme Expenditure
UK Statistics Family,Office for National Statistics,05/07/2022,Exp - Purchase Of Goods/Services - IT Contractual Services,IT Operations,Ibm United Kingdom Ltd,233613,"163,554.36",Information Management Services,Large,Programme Expenditure
UK Statistics Family,Office for National Statistics,05/07/2022,Exp - Purchase Of Goods/Services - Contractors,Business Architecture,Certes Computing Ltd,233618,"14,820.00",Information Management Services,SME,Programme Expenditure
UK Statistics Family,Office for National Statistics,05/07/2022,Exp - Purchase Of Goods/Services - Contractors,Strategy And Architecture,Certes Computing Ltd,233618,"9,000.00",Information Management Services,SME,Programme Expenditure
UK Statistics Family,Office for National Statistics,05/07/2022,Exp - Purchase Of Goods/Services - Contractors,Strategy And Architecture,Certes Computing Ltd,233618,"15,819.78",Information Management Services,SME,Programme Expenditure
UK Statistics Family,Office for National Statistics,05/07/2022,Exp - Purchase Of Goods/Services - Contractors,IT Applications,Certes Computing Ltd,233618,"14,398.56",Information Management Services,SME,Programme Expenditure
UK Statistics Family,Office for National Statistics,05/07/2022,Exp - Purchase Of Goods/Services - Contractors,Digital Delivery,Certes Computing Ltd,233618,"14,091.12",Information Management Services,SME,Programme Expenditure
UK Statistics Family,Office for National Statistics,05/07/2022,Exp - Purchase Of Goods/Services - Contractors,Data Architecture,La International,233619,"3,982.38",Information Management Services,SME,Programme Expenditure
UK Statistics Family,Office for National Statistics,05/07/2022,Exp - Purchase Of Goods/Services - Contractors,Data Architecture,La International,233619,"4,281.18",Information Management Services,SME,Programme Expenditure
UK Statistics Family,Office for National Statistics,05/07/2022,Exp - Purchase Of Goods/Services - Contractors,Tech Delivery Data As A Platform,La International,233619,"11,943.54",Information Management Services,SME,Programme Expenditure
UK Statistics Family,Office for National Statistics,05/07/2022,Exp - Purchase Of Goods/Services - Contractors,IT Applications,La International,233619,"10,745.60",Information Management Services,SME,Programme Expenditure
UK Statistics Family,Office for National Statistics,05/07/2022,Exp - Purchase Of Goods/Services - Contractors,IT Operations,La International,233619,"3,844.62",Information Management Services,SME,Programme Expenditure
UK Statistics Family,Office for National Statistics,05/07/2022,IT (Owned) At Cost - Additions,Property Services,Orange box Limited,233624,"206,856.00",Office Fixtures and Fittings,SME,Programme Expenditure
UK Statistics Family,Office for National Statistics,05/07/2022,Fixtures & Fittings At Cost - Additions,Property Newport,Orange box Limited,233624,"146,088.29",Office Fixtures and Fittings,SME,Programme Expenditure
UK Statistics Family,Office for National Statistics,05/07/2022,Fixtures & Fittings At Cost - Additions,Property Titchfield,Orange box Limited,233624,"70,837.68",Office Fixtures and Fittings,SME,Programme Expenditure
UK Statistics Family,Office for National Statistics,05/07/2022,IT (Owned) At Cost - Additions,IT Operations,Orange box Limited,233624,"17,640.00",Office Fixtures and Fittings,SME,Programme Expenditure
UK Statistics Family,Office for National Statistics,06/07/2022,Exp - Short-Term Contract & Agency Staff - Full Cost,Covid Infection Survey,Concept Information Technology Ltd T/A Concept Resourcing,233756,848.83,Information Management Services,Large,Programme Expenditure
UK Statistics Family,Office for National Statistics,06/07/2022,Exp - Short-Term Contract & Agency Staff - Full Cost,Covid Infection Survey,Concept Information Technology Ltd T/A Concept Resourcing,233756,"3,712.54",Information Management Services,Large,Programme Expenditure
UK Statistics Family,Office for National Statistics,06/07/2022,Exp - Short-Term Contract & Agency Staff - Full Cost,International Trade And Transactions,Concept Information Technology Ltd T/A Concept Resourcing,233756,"3,606.88",Information Management Services,Large,Programme Expenditure
UK Statistics Family,Office for National Statistics,06/07/2022,Exp - Short-Term Contract & Agency Staff - Full Cost,International Trade And Transactions,Concept Information Technology Ltd T/A Concept Resourcing,233756,"12,561.56",Information Management Services,Large,Programme Expenditure
UK Statistics Family,Office for National Statistics,06/07/2022,Exp - Short-Term Contract & Agency Staff - Full Cost,Business Architecture Transformation And Statistical Strategy,Concept Information Technology Ltd T/A Concept Resourcing,233756,"2,059.27",Information Management Services,Large,Programme Expenditure
UK Statistics Family,Office for National Statistics,06/07/2022,Exp - Short-Term Contract & Agency Staff - Full Cost,Business Architecture Transformation And Statistical Strategy,Concept Information Technology Ltd T/A Concept Resourcing,233756,"6,809.52",Information Management Services,Large,Programme Expenditure
UK Statistics Family,Office for National Statistics,06/07/2022,Exp - Purchase Of Goods/Services - Contractors,CDIO UNGP,Concept Information Technology Ltd T/A Concept Resourcing,233756,"7,045.44",Information Management Services,Large,Programme Expenditure
UK Statistics Family,Office for National Statistics,06/07/2022,Hosting,CLOUD ARCHITECTURE,CTS (Cloud Technology Solutions Ltd),233772,"15,191.56",Information Management Services,Large,Programme Expenditure
UK Statistics Family,Office for National Statistics,06/07/2022,Hosting,CLOUD ARCHITECTURE,CTS (Cloud Technology Solutions Ltd),233772,"150,928.36",Information Management Services,Large,Programme Expenditure
UK Statistics Family,Office for National Statistics,07/07/2022,Exp - Purchase Of Goods And Services Consultants,Population Statistics Div,NHS Digital,233877,"237,643.20",Statistical Services,Large,Programme Expenditure
UK Statistics Family,Office for National Statistics,07/07/2022,Exp - Purchase Of Goods/Services - IT Contractual Services,Digital Publishing,Swirrl It Ltd,233878,"71,640.00",Information Management Services,SME,Programme Expenditure
UK Statistics Family,Office for National Statistics,07/07/2022,Exp - Purchase Of Goods/Services - IT Contractual Services,Covid Infection Survey,Equiniti Limited,233879,"14,549.87",Information Management Services,Large,Programme Expenditure
UK Statistics Family,Office for National Statistics,07/07/2022,Exp - Purchase Of Goods/Services - IT Contractual Services,Researcher Support And Data Access ,Equiniti Limited,233879,"154,767.36",Information Management Services,Large,Programme Expenditure
UK Statistics Family,Office for National Statistics,07/07/2022,Hosting,IT Operations,Equiniti Limited,233879,"51,041.75",Information Management Services,Large,Programme Expenditure
UK Statistics Family,Office for National Statistics,07/07/2022,Exp - Seconded UK Staff - Basic Salary,Data Science Campus,Bank of England,233886,"3,594.73",Seconded Staff,Large,Programme Expenditure
UK Statistics Family,Office for National Statistics,07/07/2022,Exp - Seconded UK Staff - Basic Salary,Data Science Campus,Bank of England,233886,"8,387.71",Seconded Staff,Large,Programme Expenditure
UK Statistics Family,Office for National Statistics,07/07/2022,Exp - Seconded UK Staff - Basic Salary,Prices Division,Bank of England,233886,"14,647.30",Seconded Staff,Large,Programme Expenditure
UK Statistics Family,Office for National Statistics,08/07/2022,Hospitality,Property Services,BaxterStorey,233979,"45,717.64",Catering Services,Large,Programme Expenditure
UK Statistics Family,Office for National Statistics,08/07/2022,Exp - Purchase Of Goods/Services - Contractors,Business Architecture,LA FOSSE ASSOCIATES LIMITED,233984,"19,380.00",Information Management Services,Large,Programme Expenditure
UK Statistics Family,Office for National Statistics,08/07/2022,Exp - Purchase Of Goods/Services - Contractors,Business Architecture,LA FOSSE ASSOCIATES LIMITED,233984,870,Information Management Services,Large,Programme Expenditure
UK Statistics Family,Office for National Statistics,08/07/2022,Exp - Purchase Of Goods/Services - Contractors,Consultancy Management,LA FOSSE ASSOCIATES LIMITED,233984,"1,200.00",Information Management Services,Large,Programme Expenditure
UK Statistics Family,Office for National Statistics,08/07/2022,Exp - Purchase Of Goods/Services - Contractors,CDIO UNGP,LA FOSSE ASSOCIATES LIMITED,233984,"17,820.00",Information Management Services,Large,Programme Expenditure
UK Statistics Family,Office for National Statistics,11/07/2022,Exp - Purchase Of Goods/Services - Contractors,Digital Publishing,Talent International,234062,"26,595.60",Information Management Services,SME,Programme Expenditure
UK Statistics Family,Office for National Statistics,11/07/2022,Exp - Purchase Of Goods/Services - Contractors,International Trade And Transactions,Talent International,234062,"8,568.00",Information Management Services,SME,Programme Expenditure
UK Statistics Family,Office for National Statistics,11/07/2022,Buildings Under Construction,Property Titchfield,Vinci Construction UK Limited,234064,"62,432.10",Facilities Mangement Services,Large,Programme Expenditure
UK Statistics Family,Office for National Statistics,11/07/2022,Major Works Over 25K,Property Titchfield,Vinci Construction UK Limited,234064,"66,603.02",Facilities Mangement Services,Large,Programme Expenditure
UK Statistics Family,Office for National Statistics,11/07/2022,Exp - Short-Term Contract & Agency Staff - Full Cost,Business Change Support,Concept Information Technology Ltd T/A Concept Resourcing,234066,"4,790.93",Information Management Services,Large,Programme Expenditure
UK Statistics Family,Office for National Statistics,11/07/2022,Exp - Short-Term Contract & Agency Staff - Full Cost,Business Change Support,Concept Information Technology Ltd T/A Concept Resourcing,234066,"2,665.96",Information Management Services,Large,Programme Expenditure
UK Statistics Family,Office for National Statistics,11/07/2022,Exp - Short-Term Contract & Agency Staff - Full Cost,Business Architecture Transformation And Statistical Strategy,Concept Information Technology Ltd T/A Concept Resourcing,234066,"3,617.65",Information Management Services,Large,Programme Expenditure
UK Statistics Family,Office for National Statistics,11/07/2022,Exp - Short-Term Contract & Agency Staff - Full Cost,Data Science Campus,Concept Information Technology Ltd T/A Concept Resourcing,234066,"5,774.32",Information Management Services,Large,Programme Expenditure
UK Statistics Family,Office for National Statistics,11/07/2022,Exp - Short-Term Contract & Agency Staff - Full Cost,Public Sector And Households,Concept Information Technology Ltd T/A Concept Resourcing,234066,"2,665.96",Information Management Services,Large,Programme Expenditure
UK Statistics Family,Office for National Statistics,11/07/2022,Exp - Purchase Of Goods/Services - Contractors,Social Survey Transformation Titchfield,Concept Information Technology Ltd T/A Concept Resourcing,234066,"16,113.60",Information Management Services,Large,Programme Expenditure
UK Statistics Family,Office for National Statistics,11/07/2022,Exp - Short-Term Contract & Agency Staff - Full Cost,Social Surveys Division,Concept Information Technology Ltd T/A Concept Resourcing,234066,"1,029.64",Information Management Services,Large,Programme Expenditure
UK Statistics Family,Office for National Statistics,11/07/2022,End User Software And Hardware,Tech Delivery Next Gen IT And Infrastructure,Phoenix Software Ltd,234067,"176,328.00",Software Licenses,SME,Programme Expenditure
UK Statistics Family,Office for National Statistics,11/07/2022,Software Licences At Cost - Additions,IT Operations,Phoenix Software Ltd,234067,"632,882.88",Software Licenses,SME,Programme Expenditure
UK Statistics Family,Office for National Statistics,11/07/2022,Exp - Purchase Of Goods/Services - Contractors,Business Architecture,La International,234072,"2,245.60",Information Management Services,SME,Programme Expenditure
UK Statistics Family,Office for National Statistics,11/07/2022,Exp - Purchase Of Goods/Services - Contractors,Business Architecture,La International,234072,"2,245.58",Information Management Services,SME,Programme Expenditure
UK Statistics Family,Office for National Statistics,11/07/2022,Exp - Purchase Of Goods/Services - Contractors,Testing,La International,234072,"9,065.47",Information Management Services,SME,Programme Expenditure
UK Statistics Family,Office for National Statistics,11/07/2022,Exp - Purchase Of Goods/Services - Contractors,Testing,La International,234072,"2,215.60",Information Management Services,SME,Programme Expenditure
UK Statistics Family,Office for National Statistics,11/07/2022,Exp - Purchase Of Goods/Services - Contractors,Security And Information Management Saim,La International,234072,"17,670.00",Information Management Services,SME,Programme Expenditure
UK Statistics Family,Office for National Statistics,11/07/2022,Exp - Purchase Of Goods/Services - Contractors,Data Architecture,La International,234072,"2,694.71",Information Management Services,SME,Programme Expenditure
UK Statistics Family,Office for National Statistics,11/07/2022,Exp - Purchase Of Goods/Services - Contractors,CLOUD ARCHITECTURE,La International,234072,"6,664.03",Information Management Services,SME,Programme Expenditure
UK Statistics Family,Office for National Statistics,11/07/2022,Exp - Purchase Of Goods/Services - Contractors,Tech Delivery Legacy Sp,La International,234072,"17,250.24",Information Management Services,SME,Programme Expenditure
UK Statistics Family,Office for National Statistics,11/07/2022,Exp - Purchase Of Goods/Services - Contractors,Tech Delivery Data As A Platform,La International,234072,"3,184.94",Information Management Services,SME,Programme Expenditure
UK Statistics Family,Office for National Statistics,11/07/2022,Exp - Purchase Of Goods/Services - Contractors,IT Applications,La International,234072,"3,280.94",Information Management Services,SME,Programme Expenditure
UK Statistics Family,Office for National Statistics,11/07/2022,Exp - Short-Term Contract & Agency Staff - Full Cost,Data Architecture,Malikshaw Interim & Executive,234074,"6,161.88",Information Management Services,SME,Programme Expenditure
UK Statistics Family,Office for National Statistics,11/07/2022,Exp - Purchase Of Goods/Services - Contractors,Data Science Campus,Malikshaw Interim & Executive,234074,"14,851.20",Information Management Services,SME,Programme Expenditure
UK Statistics Family,Office for National Statistics,11/07/2022,Exp - Purchase Of Goods/Services - Contractors,Data As A Service,Malikshaw Interim & Executive,234074,"18,672.00",Information Management Services,SME,Programme Expenditure
UK Statistics Family,Office for National Statistics,11/07/2022,Exp - Purchase Of Goods/Services - Contractors,Data As A Service,Malikshaw Interim & Executive,234074,"14,916.00",Information Management Services,SME,Programme Expenditure
UK Statistics Family,Office for National Statistics,11/07/2022,Exp - Purchase Of Goods/Services - IT Contractual Services,Strategy And Architecture,Methods Business & Digital Technology Ltd,234077,"28,500.00",Information Management Services,Large,Programme Expenditure
UK Statistics Family,Office for National Statistics,11/07/2022,Exp - Purchase Of Goods/Services - IT Contractual Services,Digital Delivery,Methods Business & Digital Technology Ltd,234077,"59,805.00",Information Management Services,Large,Programme Expenditure
UK Statistics Family,Office for National Statistics,11/07/2022,Exp - Purchase Of Goods/Services - Contractors,Consultancy Management,LA FOSSE ASSOCIATES LIMITED,234078,"15,119.75",Information Management Services,Large,Programme Expenditure
UK Statistics Family,Office for National Statistics,11/07/2022,Exp - Purchase Of Goods/Services - Contractors,Digital Publishing,LA FOSSE ASSOCIATES LIMITED,234078,"31,740.00",Information Management Services,Large,Programme Expenditure
UK Statistics Family,Office for National Statistics,11/07/2022,Marketing & Media,Stakeholder Engagement And Comms,M&C Saatchi UK Ltd,234079,"181,377.32",Marketing and Media Services,Large,Programme Expenditure
UK Statistics Family,Office for National Statistics,13/07/2022,Telecoms,IT Operations,Bt Global Services,234389,"47,915.94",Telecommunications,Large,Programme Expenditure
UK Statistics Family,Office for National Statistics,13/07/2022,Exp - Purchase Of Goods/Services - Contractors,IT Applications,Certes Computing Ltd,234397,"14,586.61",Information Management Services,SME,Programme Expenditure
UK Statistics Family,Office for National Statistics,13/07/2022,Exp - Purchase Of Goods/Services - Contractors,IT Operations,Certes Computing Ltd,234397,"11,586.82",Information Management Services,SME,Programme Expenditure
UK Statistics Family,Office for National Statistics,13/07/2022,Stationery,Lodgecard,Royal Bank of Scotland,234403,"2,568.00",Multiple Procurement Card Purchases  - Stationery ,Large,Programme Expenditure
UK Statistics Family,Office for National Statistics,13/07/2022,Other Goods And Services,GPC,Royal Bank of Scotland,234403,"70,376.06",Multiple Procurement Card Purchases - other goods/services  ,Large,Programme Expenditure
UK Statistics Family,Office for National Statistics,13/07/2022,Travel And Subsistence,Car Hire,Royal Bank of Scotland,234403,"16,853.55",Multiple Procurement Card Purchases - Vehicle Hire  ,Large,Programme Expenditure
UK Statistics Family,Office for National Statistics,13/07/2022,Exp - Short-Term Contract & Agency Staff - Full Cost,Data Architecture,Malikshaw Interim & Executive,234407,"8,720.46",Information Management Services,SME,Programme Expenditure
UK Statistics Family,Office for National Statistics,13/07/2022,Exp - Purchase Of Goods/Services - Contractors,Data Architecture,Malikshaw Interim & Executive,234407,"19,872.00",Information Management Services,SME,Programme Expenditure
UK Statistics Family,Office for National Statistics,13/07/2022,Exp - Purchase Of Goods/Services - Contractors,Data Architecture,Parity Resources Limited,234417,"33,673.50",Information Management Services,Large,Programme Expenditure
UK Statistics Family,Office for National Statistics,13/07/2022,Exp - Purchase Of Goods/Services - Contractors,CLOUD ARCHITECTURE,Parity Resources Limited,234417,"3,600.00",Information Management Services,Large,Programme Expenditure
UK Statistics Family,Office for National Statistics,13/07/2022,Exp - Purchase Of Goods/Services - Contractors,CLOUD ARCHITECTURE,Parity Resources Limited,234417,"6,861.00",Information Management Services,Large,Programme Expenditure
UK Statistics Family,Office for National Statistics,13/07/2022,Exp - Purchase Of Goods/Services - Contractors,CDIO UNGP,Parity Resources Limited,234417,"18,402.00",Information Management Services,Large,Programme Expenditure
UK Statistics Family,Office for National Statistics,13/07/2022,Exp - Purchase Of Goods/Services - Contractors,Strategy And Architecture,Parity Resources Limited,234417,"8,999.88",Information Management Services,Large,Programme Expenditure
UK Statistics Family,Office for National Statistics,13/07/2022,Exp - Purchase Of Goods/Services - Contractors,Strategy And Architecture,Parity Resources Limited,234417,"4,210.50",Information Management Services,Large,Programme Expenditure
UK Statistics Family,Office for National Statistics,13/07/2022,Exp - Purchase Of Goods/Services - Contractors,Tech Delivery Next Gen IT And Infrastructure,Parity Resources Limited,234417,842.1,Information Management Services,Large,Programme Expenditure
UK Statistics Family,Office for National Statistics,13/07/2022,Exp - Purchase Of Goods/Services - Contractors,IT Applications,Parity Resources Limited,234417,"16,612.02",Information Management Services,Large,Programme Expenditure
UK Statistics Family,Office for National Statistics,13/07/2022,Exp - Purchase Of Goods/Services - Contractors,IT Operations,Parity Resources Limited,234417,"6,918.90",Information Management Services,Large,Programme Expenditure
UK Statistics Family,Office for National Statistics,14/07/2022,"ICT Outsourcing, Maintenance And Support",IT Operations,Microsoft Limited,234518,"110,869.20",Information Management Services,Large,Programme Expenditure
UK Statistics Family,Office for National Statistics,14/07/2022,Buildings Under Construction,Property Services,Vinci Construction UK Limited,234520,"43,900.92",Facilities Mangement Services,Large,Programme Expenditure
UK Statistics Family,Office for National Statistics,14/07/2022,End User Software And Hardware,Strategy And Architecture,Scc,234522,"32,768.64",Software Licenses,Large,Programme Expenditure
UK Statistics Family,Office for National Statistics,14/07/2022,Exp - Purchase Of Goods/Services - IT Contractual Services,IT Operations,Equiniti Limited,234524,"66,960.00",Information Management Services,Large,Programme Expenditure
UK Statistics Family,Office for National Statistics,14/07/2022,Telecoms,IT Operations,Cdw Limited,234525,"35,536.80",Information Management Services,Large,Programme Expenditure
UK Statistics Family,Office for National Statistics,14/07/2022,Exp - Purchase Of Goods/Services - Contractors,Testing,La International,234527,"8,226.85",Information Management Services,SME,Programme Expenditure
UK Statistics Family,Office for National Statistics,14/07/2022,Exp - Purchase Of Goods/Services - Contractors,Testing,La International,234527,"3,945.69",Information Management Services,SME,Programme Expenditure
UK Statistics Family,Office for National Statistics,14/07/2022,Exp - Purchase Of Goods/Services - Contractors,STRATEGY SYNTHESIS AND CO-ORDINATION,La International,234527,"3,156.90",Information Management Services,SME,Programme Expenditure
UK Statistics Family,Office for National Statistics,14/07/2022,Exp - Purchase Of Goods/Services - Contractors,Data Architecture,La International,234527,"28,114.02",Information Management Services,SME,Programme Expenditure
UK Statistics Family,Office for National Statistics,14/07/2022,Exp - Purchase Of Goods/Services - IT Contractual Services,CDIO UNGP,CTS (Cloud Technology Solutions Ltd),234530,"3,228.00",Information Management Services,Large,Programme Expenditure
UK Statistics Family,Office for National Statistics,14/07/2022,Exp - Purchase Of Goods/Services - IT Contractual Services,Tech Delivery Legacy Sp,CTS (Cloud Technology Solutions Ltd),234530,"193,188.00",Information Management Services,Large,Programme Expenditure
UK Statistics Family,Office for National Statistics,14/07/2022,Exp - Purchase Of Goods/Services - IT Contractual Services,Strategy And Architecture,Methods Business & Digital Technology Ltd,234532,"13,566.00",Information Management Services,Large,Programme Expenditure
UK Statistics Family,Office for National Statistics,14/07/2022,Exp - Purchase Of Goods/Services - IT Contractual Services,Digital Delivery,Methods Business & Digital Technology Ltd,234532,"30,666.00",Information Management Services,Large,Programme Expenditure
UK Statistics Family,Office for National Statistics,14/07/2022,Exp - Purchase Of Goods/Services - Contractors,Data Architecture,LA FOSSE ASSOCIATES LIMITED,234533,"16,560.00",Information Management Services,Large,Programme Expenditure
UK Statistics Family,Office for National Statistics,14/07/2022,Exp - Purchase Of Goods/Services - Contractors,Data Architecture,LA FOSSE ASSOCIATES LIMITED,234533,"16,560.00",Information Management Services,Large,Programme Expenditure
UK Statistics Family,Office for National Statistics,14/07/2022,Exp - Purchase Of Goods/Services - Contractors,CLOUD ARCHITECTURE,LA FOSSE ASSOCIATES LIMITED,234533,"16,200.00",Information Management Services,Large,Programme Expenditure
UK Statistics Family,Office for National Statistics,14/07/2022,Exp - Purchase Of Goods/Services - Contractors,Strategy And Architecture,LA FOSSE ASSOCIATES LIMITED,234533,"18,900.00",Information Management Services,Large,Programme Expenditure
UK Statistics Family,Office for National Statistics,14/07/2022,Exp - Purchase Of Goods/Services - Contractors,Strategy And Architecture,LA FOSSE ASSOCIATES LIMITED,234533,"13,977.60",Information Management Services,Large,Programme Expenditure
UK Statistics Family,Office for National Statistics,14/07/2022,Exp - Purchase Of Goods/Services - Contractors,Tech Delivery Legacy Sp,LA FOSSE ASSOCIATES LIMITED,234533,"18,000.00",Information Management Services,Large,Programme Expenditure
UK Statistics Family,Office for National Statistics,14/07/2022,Exp - Purchase Of Goods/Services - Contractors,Tech Delivery Legacy Sp,LA FOSSE ASSOCIATES LIMITED,234533,"3,600.00",Information Management Services,Large,Programme Expenditure
UK Statistics Family,Office for National Statistics,14/07/2022,Exp - Purchase Of Goods/Services - IT Contractual Services,Digital Delivery,Armakuni Ltd,234534,"35,640.00",Information Management Services,SME,Programme Expenditure
UK Statistics Family,Office for National Statistics,14/07/2022,Exp - Short-Term Contract & Agency Staff - Full Cost,Data Architecture,Talent International,234540,"2,535.98",Information Management Services,SME,Programme Expenditure
UK Statistics Family,Office for National Statistics,14/07/2022,Exp - Purchase Of Goods/Services - Contractors,Tech Delivery Next Gen IT And Infrastructure,Talent International,234540,"8,089.20",Information Management Services,SME,Programme Expenditure
UK Statistics Family,Office for National Statistics,14/07/2022,Exp - Purchase Of Goods/Services - Contractors,IT Applications,Talent International,234540,"12,938.40",Information Management Services,SME,Programme Expenditure
UK Statistics Family,Office for National Statistics,14/07/2022,Exp - Purchase Of Goods/Services - Contractors,IT Operations,Talent International,234540,"15,837.60",Information Management Services,SME,Programme Expenditure
UK Statistics Family,Office for National Statistics,14/07/2022,Exp - Purchase Of Goods/Services - Contractors,IT Operations,Talent International,234540,"2,400.00",Information Management Services,SME,Programme Expenditure
UK Statistics Family,Office for National Statistics,14/07/2022,Exp - Short-Term Contract & Agency Staff - Full Cost,Social Survey Transformation Titchfield,Talent International,234540,440.64,Information Management Services,SME,Programme Expenditure
UK Statistics Family,Office for National Statistics,14/07/2022,Exp - Short-Term Contract & Agency Staff - Full Cost,SOCIAL SURVEY DATA PROCESSING,Talent International,234540,"3,965.76",Information Management Services,SME,Programme Expenditure
UK Statistics Family,Office for National Statistics,15/07/2022,Major Works Over 25K,Property Titchfield,Vinci Construction UK Limited,234639,"110,625.05",Facilities Mangement Services,Large,Programme Expenditure
UK Statistics Family,Office for National Statistics,15/07/2022,Exp - Purchase Of Goods And Services Consultants,Productivity Research And Professional Development,Niesr,234644,"147,751.20",Statistical Services,SME,Programme Expenditure
UK Statistics Family,Office for National Statistics,15/07/2022,Exp - Purchase Of Goods/Services - Incentive Payments,Covid Infection Survey,Sodexo Motivation Solutions U.K. ltd,234650,"76,538.04",Survey Response Incentive Vouchers,Large,Programme Expenditure
UK Statistics Family,Office for National Statistics,15/07/2022,Exp - Purchase Of Goods/Services - Contractors,Data Architecture,Talent International,234653,"14,400.00",Information Management Services,SME,Programme Expenditure
UK Statistics Family,Office for National Statistics,15/07/2022,Exp - Purchase Of Goods/Services - Contractors,Strategy And Architecture,Talent International,234653,"17,340.00",Information Management Services,SME,Programme Expenditure
UK Statistics Family,Office for National Statistics,15/07/2022,Exp - Purchase Of Goods/Services - Contractors,Strategy And Architecture,Talent International,234653,"15,120.00",Information Management Services,SME,Programme Expenditure
UK Statistics Family,Office for National Statistics,15/07/2022,Exp - Purchase Of Goods/Services - Contractors,IT Operations,Talent International,234653,"10,200.00",Information Management Services,SME,Programme Expenditure
UK Statistics Family,Office for National Statistics,15/07/2022,Exp - Short-Term Contract & Agency Staff - Full Cost,Divisional Management,Talent International,234653,"13,718.59",Information Management Services,SME,Programme Expenditure
UK Statistics Family,Office for National Statistics,18/07/2022,Surveys,Social Surveys Division,Natcen Social Research,234741,"12,620.20",Statistical Services,Large,Programme Expenditure
UK Statistics Family,Office for National Statistics,18/07/2022,Exp - Purchase Of Goods/Services - Incentive Payments,Social Surveys Division,Natcen Social Research,234741,"30,294.60",Statistical Services,Large,Programme Expenditure
UK Statistics Family,Office for National Statistics,18/07/2022,Accommodation & Building Management,Property London,Westminster City Council,234742,"77,672.00",Non-domestic Rates,Large,Programme Expenditure
UK Statistics Family,Office for National Statistics,18/07/2022,Non IT Maintenance And Hire,Commercial Services,Marsh Commercial,234757,"33,581.00",Insurance Services,Large,Programme Expenditure
UK Statistics Family,Office for National Statistics,19/07/2022,Exp - Purchase Of Goods/Services - Contractors,Testing,La International,234920,"12,534.44",Information Management Services,SME,Programme Expenditure
UK Statistics Family,Office for National Statistics,19/07/2022,Exp - Purchase Of Goods/Services - Contractors,Testing,La International,234920,"6,540.83",Information Management Services,SME,Programme Expenditure
UK Statistics Family,Office for National Statistics,19/07/2022,Exp - Purchase Of Goods/Services - Contractors,Consultancy Management,La International,234920,"7,269.48",Information Management Services,SME,Programme Expenditure
UK Statistics Family,Office for National Statistics,19/07/2022,Exp - Purchase Of Goods/Services - Contractors,Data Architecture,La International,234920,"9,645.79",Information Management Services,SME,Programme Expenditure
UK Statistics Family,Office for National Statistics,19/07/2022,Exp - Purchase Of Goods/Services - Contractors,Data Architecture,La International,234920,"3,853.07",Information Management Services,SME,Programme Expenditure
UK Statistics Family,Office for National Statistics,19/07/2022,Exp - Purchase Of Goods/Services - Contractors,CLOUD ARCHITECTURE,La International,234920,"4,165.02",Information Management Services,SME,Programme Expenditure
UK Statistics Family,Office for National Statistics,19/07/2022,Exp - Purchase Of Goods/Services - Contractors,Tech Delivery Legacy Sp,La International,234920,"8,330.04",Information Management Services,SME,Programme Expenditure
UK Statistics Family,Office for National Statistics,19/07/2022,Exp - Purchase Of Goods/Services - Contractors,Tech Delivery Next Gen IT And Infrastructure,La International,234920,"3,844.62",Information Management Services,SME,Programme Expenditure
UK Statistics Family,Office for National Statistics,19/07/2022,Exp - Purchase Of Goods/Services - Contractors,IT Applications,La International,234920,"9,162.36",Information Management Services,SME,Programme Expenditure
UK Statistics Family,Office for National Statistics,19/07/2022,Exp - Purchase Of Goods/Services - Contractors,IT Operations,La International,234920,"11,567.30",Information Management Services,SME,Programme Expenditure
UK Statistics Family,Office for National Statistics,19/07/2022,Exp - Purchase Of Goods/Services - IT Contractual Services,PARTNERSHIP DEVELOPMENT,CGI IT UK Limited,234925,"72,947.28",Information Management Services,Large,Programme Expenditure
UK Statistics Family,Office for National Statistics,19/07/2022,Exp - Purchase Of Goods/Services - Contractors,Strategy And Architecture,Parity Resources Limited,234928,"8,503.34",Information Management Services,Large,Programme Expenditure
UK Statistics Family,Office for National Statistics,19/07/2022,Exp - Purchase Of Goods/Services - Contractors,Tech Delivery Next Gen IT And Infrastructure,Parity Resources Limited,234928,"9,745.20",Information Management Services,Large,Programme Expenditure
UK Statistics Family,Office for National Statistics,19/07/2022,Exp - Purchase Of Goods/Services - Contractors,IT Applications,Parity Resources Limited,234928,"7,332.12",Information Management Services,Large,Programme Expenditure
UK Statistics Family,Office for National Statistics,19/07/2022,Exp - Purchase Of Goods/Services - Contractors,IT Operations,Parity Resources Limited,234928,"10,047.30",Information Management Services,Large,Programme Expenditure
UK Statistics Family,Office for National Statistics,20/07/2022,Exp - Purchase Of Goods/Services - IT Contractual Services,IT Operations,Ibm United Kingdom Ltd,235066,"78,422.40",Information Management Services,Large,Programme Expenditure
UK Statistics Family,Office for National Statistics,20/07/2022,Exp - Purchase Of Goods/Services - IT Contractual Services,IT Operations,Ibm United Kingdom Ltd,235066,"49,152.00",Information Management Services,Large,Programme Expenditure
UK Statistics Family,Office for National Statistics,20/07/2022,Travel And Subsistence,ONS Corporate Funds,Corporate Travel Management ,235067,"30,222.82",Travel and Accommodation,SME,Programme Expenditure
UK Statistics Family,Office for National Statistics,20/07/2022,Exp - Short-Term Contract & Agency Staff - Full Cost,Data Architecture,Malikshaw Interim & Executive,235076,"7,209.22",Information Management Services,SME,Programme Expenditure
UK Statistics Family,Office for National Statistics,20/07/2022,Exp - Purchase Of Goods/Services - Contractors,Data Architecture,Malikshaw Interim & Executive,235076,"14,851.20",Information Management Services,SME,Programme Expenditure
UK Statistics Family,Office for National Statistics,20/07/2022,Exp - Purchase Of Goods/Services - Contractors,IT Operations,Malikshaw Interim & Executive,235076,"32,966.40",Information Management Services,SME,Programme Expenditure
UK Statistics Family,Office for National Statistics,20/07/2022,Exp - Purchase Of Goods/Services - IT Contractual Services,IT Applications,Diegesis Limited,235079,"150,270.00",Information Management Services,Large,Programme Expenditure
UK Statistics Family,Office for National Statistics,20/07/2022,Exp - Purchase Of Goods/Services - Contractors,INTEGRATED DATA STRATEGY AND DELIVERY,LA FOSSE ASSOCIATES LIMITED,235080,"17,940.00",Information Management Services,Large,Programme Expenditure
UK Statistics Family,Office for National Statistics,20/07/2022,Exp - Purchase Of Goods/Services - Contractors,Data As A Service,LA FOSSE ASSOCIATES LIMITED,235080,"14,400.00",Information Management Services,Large,Programme Expenditure
UK Statistics Family,Office for National Statistics,20/07/2022,Exp - Purchase Of Goods/Services - Contractors,Digital Publishing,Talent International,235090,"8,736.00",Information Management Services,SME,Programme Expenditure
UK Statistics Family,Office for National Statistics,20/07/2022,Exp - Purchase Of Goods/Services - Contractors,INTEGRATED DATA STRATEGY AND DELIVERY,Talent International,235090,"10,350.00",Information Management Services,SME,Programme Expenditure
UK Statistics Family,Office for National Statistics,20/07/2022,Exp - Purchase Of Goods/Services - Contractors,Data Architecture,Talent International,235090,"15,300.00",Information Management Services,SME,Programme Expenditure
UK Statistics Family,Office for National Statistics,20/07/2022,Exp - Purchase Of Goods/Services - Contractors,Tech Delivery Legacy Sp,Talent International,235090,"23,498.40",Information Management Services,SME,Programme Expenditure
UK Statistics Family,Office for National Statistics,20/07/2022,Exp - Purchase Of Goods/Services - Contractors,IT Operations,Talent International,235090,"10,920.00",Information Management Services,SME,Programme Expenditure
UK Statistics Family,Office for National Statistics,21/07/2022,PPE - NON-PROPERTY (LEASED NON-PFI) - COST - ADDITIONS (AS LESSEE),IT Operations,Crown Hosting Data Centres Limited,235183,"66,425.82",Information Management Services,SME,Programme Expenditure
UK Statistics Family,Office for National Statistics,21/07/2022,FM Contract Payments,Vinci Payments,Vinci Construction UK Limited,235185,"81,927.47",Facilities Mangement Services,Large,Programme Expenditure
UK Statistics Family,Office for National Statistics,21/07/2022,"ICT Outsourcing, Maintenance And Support",Covid Infection Survey,Equiniti Limited,235189,"17,993.87",Information Management Services,Large,Programme Expenditure
UK Statistics Family,Office for National Statistics,21/07/2022,"ICT Outsourcing, Maintenance And Support",Researcher Support And Data Access ,Equiniti Limited,235189,"160,551.36",Information Management Services,Large,Programme Expenditure
UK Statistics Family,Office for National Statistics,21/07/2022,Hosting,IT Operations,Equiniti Limited,235189,"51,041.75",Information Management Services,Large,Programme Expenditure
UK Statistics Family,Office for National Statistics,21/07/2022,End User Software And Hardware,Finance,Softcat,235190,"158,831.35",Software Licenses,SME,Programme Expenditure
UK Statistics Family,Office for National Statistics,21/07/2022,Exp - Purchase Of Goods/Services - Contractors,Business Architecture,La International,235191,"6,639.01",Information Management Services,SME,Programme Expenditure
UK Statistics Family,Office for National Statistics,21/07/2022,Exp - Purchase Of Goods/Services - Contractors,Business Architecture,La International,235191,"4,491.16",Information Management Services,SME,Programme Expenditure
UK Statistics Family,Office for National Statistics,21/07/2022,Exp - Purchase Of Goods/Services - Contractors,Testing,La International,235191,"2,658.69",Information Management Services,SME,Programme Expenditure
UK Statistics Family,Office for National Statistics,21/07/2022,Exp - Purchase Of Goods/Services - Contractors,Testing,La International,235191,"2,658.73",Information Management Services,SME,Programme Expenditure
UK Statistics Family,Office for National Statistics,21/07/2022,Exp - Purchase Of Goods/Services - Contractors,Testing,La International,235191,"10,739.04",Information Management Services,SME,Programme Expenditure
UK Statistics Family,Office for National Statistics,21/07/2022,Hosting,CLOUD ARCHITECTURE,Amazon Web Services Inc,235196,"257,552.37",Information Management Services,Large,Programme Expenditure
UK Statistics Family,Office for National Statistics,21/07/2022,Exp - Purchase Of Goods/Services - Incentive Payments,Covid Infection Survey,Sodexo Motivation Solutions U.K. ltd,235197,"616,178.80",Survey Response Incentive Vouchers,Large,Programme Expenditure
UK Statistics Family,Office for National Statistics,21/07/2022,IT (Owned) At Cost - Additions,CLOUD ARCHITECTURE,denodo,235198,"224,640.00",Software Licenses,SME,Programme Expenditure
UK Statistics Family,Office for National Statistics,21/07/2022,Telecoms,IT Operations,Freedom Communications (UK) Ltd,235200,"29,174.72",Telecommunications,Large,Programme Expenditure
UK Statistics Family,Office for National Statistics,21/07/2022,Telecoms,IT Operations,Bt Global Services,235204,"48,274.02",Telecommunications,Large,Programme Expenditure
UK Statistics Family,Office for National Statistics,21/07/2022,Exp - Purchase Of Goods/Services - Contractors,Digital Publishing,Talent International,235205,"16,200.00",Information Management Services,SME,Programme Expenditure
UK Statistics Family,Office for National Statistics,21/07/2022,Exp - Purchase Of Goods/Services - Contractors,International Trade And Transactions,Talent International,235205,"9,072.00",Information Management Services,SME,Programme Expenditure
UK Statistics Family,Office for National Statistics,22/07/2022,Exp - Purchase Of Goods/Services - Contractors,CDIO UNGP,Certes Computing Ltd,235309,"14,771.52",Information Management Services,SME,Programme Expenditure
UK Statistics Family,Office for National Statistics,22/07/2022,Exp - Purchase Of Goods/Services - Contractors,Data As A Service,Certes Computing Ltd,235309,"19,163.76",Information Management Services,SME,Programme Expenditure
UK Statistics Family,Office for National Statistics,22/07/2022,Exp - Purchase Of Goods And Services Consultants,Digital Media,Methods Business & Digital Technology Ltd,235313,"38,640.00",Information Management Services,Large,Programme Expenditure
UK Statistics Family,Office for National Statistics,25/07/2022,IT (Owned) At Cost - Additions,IT Operations,Centerprise International Ltd,235422,"434,898.00",Computers and Peripherals,Large,Programme Expenditure
UK Statistics Family,Office for National Statistics,25/07/2022,Exp - Purchase Of Goods/Services - Contractors,Business Architecture,La International,235423,"5,432.40",Information Management Services,SME,Programme Expenditure
UK Statistics Family,Office for National Statistics,25/07/2022,Exp - Purchase Of Goods/Services - Contractors,Business Architecture,La International,235423,"4,491.16",Information Management Services,SME,Programme Expenditure
UK Statistics Family,Office for National Statistics,25/07/2022,Exp - Purchase Of Goods/Services - Contractors,Testing,La International,235423,"10,874.94",Information Management Services,SME,Programme Expenditure
UK Statistics Family,Office for National Statistics,25/07/2022,Exp - Purchase Of Goods/Services - Contractors,Testing,La International,235423,"6,593.82",Information Management Services,SME,Programme Expenditure
UK Statistics Family,Office for National Statistics,25/07/2022,Exp - Purchase Of Goods/Services - Contractors,Testing,La International,235423,"4,705.99",Information Management Services,SME,Programme Expenditure
UK Statistics Family,Office for National Statistics,25/07/2022,Exp - Purchase Of Goods/Services - Contractors,Consultancy Management,La International,235423,"7,269.48",Information Management Services,SME,Programme Expenditure
UK Statistics Family,Office for National Statistics,25/07/2022,Exp - Purchase Of Goods/Services - Contractors,STRATEGY SYNTHESIS AND CO-ORDINATION,La International,235423,"3,156.90",Information Management Services,SME,Programme Expenditure
UK Statistics Family,Office for National Statistics,25/07/2022,Exp - Purchase Of Goods/Services - Contractors,Data Architecture,La International,235423,"21,488.98",Information Management Services,SME,Programme Expenditure
UK Statistics Family,Office for National Statistics,25/07/2022,Exp - Purchase Of Goods/Services - Contractors,Data Architecture,La International,235423,428.12,Information Management Services,SME,Programme Expenditure
UK Statistics Family,Office for National Statistics,25/07/2022,Exp - Purchase Of Goods/Services - Contractors,Tech Delivery Legacy Sp,La International,235423,"4,165.02",Information Management Services,SME,Programme Expenditure
UK Statistics Family,Office for National Statistics,25/07/2022,Exp - Purchase Of Goods/Services - Incentive Payments,Covid Infection Survey,Sodexo Motivation Solutions U.K. ltd,235424,"64,158.36",Survey Response Incentive Vouchers,Large,Programme Expenditure
UK Statistics Family,Office for National Statistics,26/07/2022,Exp - Purchase Of Goods/Services - IT Contractual Services,Tech Delivery Data As A Platform,Kainos,235615,"76,500.00",Information Management Services,Large,Programme Expenditure
UK Statistics Family,Office for National Statistics,26/07/2022,Specialist User Software And Hardware,Security Operations,Scc,235617,"532,351.87",Software Licenses,Large,Programme Expenditure
UK Statistics Family,Office for National Statistics,26/07/2022,Postage,Property Titchfield,Pitney Bowes Ltd,235618,"182,396.23",Postage Services,Large,Programme Expenditure
UK Statistics Family,Office for National Statistics,26/07/2022,Travel And Subsistence,ONS Corporate Funds,Corporate Travel Management ,235619,"28,301.38",Travel and Accommodation,SME,Programme Expenditure
UK Statistics Family,Office for National Statistics,26/07/2022,"ICT Outsourcing, Maintenance And Support",IT Operations,Stone Computers,235620,"78,600.00","Hardware, Software and Firmware Support",Large,Programme Expenditure
UK Statistics Family,Office for National Statistics,26/07/2022,Fixtures & Fittings At Cost - Additions,Property Titchfield,Gresham Office Furniture Limited,235627,"59,220.00",Office Furniture,SME,Programme Expenditure
UK Statistics Family,Office for National Statistics,26/07/2022,Exp - Purchase Of Goods/Services - IT Contractual Services,Digital Delivery,Methods Business & Digital Technology Ltd,235629,"43,530.00",Information Management Services,Large,Programme Expenditure
UK Statistics Family,Office for National Statistics,26/07/2022,Hosting,PHYSICAL SECURITY AND BUSINESS CONTINUITY,Continuity2 Limited,235631,"33,600.00",Software Licenses,SME,Programme Expenditure
UK Statistics Family,Office for National Statistics,27/07/2022,End User Software And Hardware,Finance,Phoenix Software Ltd,235759,"185,180.20",Software Licenses,SME,Programme Expenditure
UK Statistics Family,Office for National Statistics,27/07/2022,Exp - Purchase Of Goods/Services - Contractors,Testing,Parity Resources Limited,235762,"22,497.04",Information Management Services,Large,Programme Expenditure
UK Statistics Family,Office for National Statistics,27/07/2022,Exp - Short-Term Contract & Agency Staff - Full Cost,Business Architecture Transformation And Statistical Strategy,Parity Resources Limited,235762,"15,559.36",Information Management Services,Large,Programme Expenditure
UK Statistics Family,Office for National Statistics,27/07/2022,Exp - Purchase Of Goods/Services - Contractors,CLOUD ARCHITECTURE,Parity Resources Limited,235762,"6,480.00",Information Management Services,Large,Programme Expenditure
UK Statistics Family,Office for National Statistics,27/07/2022,Exp - Purchase Of Goods/Services - Contractors,Strategy And Architecture,Parity Resources Limited,235762,"8,099.89",Information Management Services,Large,Programme Expenditure
UK Statistics Family,Office for National Statistics,27/07/2022,Exp - Purchase Of Goods/Services - Contractors,Strategy And Architecture,Parity Resources Limited,235762,899.99,Information Management Services,Large,Programme Expenditure
UK Statistics Family,Office for National Statistics,27/07/2022,Other Goods And Services,Security And Information Management Saim,Cabinet Office,235763,"65,382.42",Security Vetting Services,Large,Programme Expenditure
UK Statistics Family,Office for National Statistics,28/07/2022,Fixtures & Fittings At Cost - Additions,Property Titchfield,Vinci Construction UK Limited,235858,"26,512.22",Facilities Mangement Services,Large,Programme Expenditure
UK Statistics Family,Office for National Statistics,28/07/2022,Major Works Over 25K,Property Titchfield,Vinci Construction UK Limited,235858,"14,341.50",Facilities Mangement Services,Large,Programme Expenditure
UK Statistics Family,Office for National Statistics,28/07/2022,Major Works Over 25K,Property Titchfield,Vinci Construction UK Limited,235858,"24,562.50",Facilities Mangement Services,Large,Programme Expenditure
UK Statistics Family,Office for National Statistics,28/07/2022,Postage,Survey Processing Centre,DHL Parcel Ltd,235861,"30,159.72",Postage Services,Large,Programme Expenditure
UK Statistics Family,Office for National Statistics,28/07/2022,Exp - Purchase Of Goods/Services - Contractors,Data Architecture,Certes Computing Ltd,235864,"13,770.54",Information Management Services,SME,Programme Expenditure
UK Statistics Family,Office for National Statistics,28/07/2022,Exp - Purchase Of Goods/Services - Contractors,Digital Delivery,Certes Computing Ltd,235864,"11,272.90",Information Management Services,SME,Programme Expenditure
UK Statistics Family,Office for National Statistics,28/07/2022,Exp - Purchase Of Goods/Services - Contractors,Business Architecture,La International,235865,"2,909.13",Information Management Services,SME,Programme Expenditure
UK Statistics Family,Office for National Statistics,28/07/2022,Exp - Purchase Of Goods/Services - Contractors,Business Architecture,La International,235865,"2,245.58",Information Management Services,SME,Programme Expenditure
UK Statistics Family,Office for National Statistics,28/07/2022,Exp - Purchase Of Goods/Services - Contractors,Testing,La International,235865,"9,586.19",Information Management Services,SME,Programme Expenditure
UK Statistics Family,Office for National Statistics,28/07/2022,Exp - Purchase Of Goods/Services - Contractors,Testing,La International,235865,"6,161.29",Information Management Services,SME,Programme Expenditure
UK Statistics Family,Office for National Statistics,28/07/2022,Exp - Purchase Of Goods/Services - Contractors,Testing,La International,235865,"3,317.65",Information Management Services,SME,Programme Expenditure
UK Statistics Family,Office for National Statistics,28/07/2022,Exp - Purchase Of Goods/Services - Contractors,Consultancy Management,La International,235865,"3,681.18",Information Management Services,SME,Programme Expenditure
UK Statistics Family,Office for National Statistics,28/07/2022,Exp - Purchase Of Goods/Services - Incentive Payments,Survey Management,Sodexo Motivation Solutions U.K. ltd,235875,"150,017.50",Survey Response Incentive Vouchers,Large,Programme Expenditure
UK Statistics Family,Office for National Statistics,28/07/2022,Exp - Purchase Of Goods/Services - Incentive Payments,Survey Management,Sodexo Motivation Solutions U.K. ltd,235875,750.07,Survey Response Incentive Vouchers,Large,Programme Expenditure
UK Statistics Family,Office for National Statistics,28/07/2022,Exp - Purchase Of Goods/Services - Incentive Payments,Survey Management,Sodexo Motivation Solutions U.K. ltd,235875,740.19,Survey Response Incentive Vouchers,Large,Programme Expenditure
UK Statistics Family,Office for National Statistics,28/07/2022,Exp - Purchase Of Goods/Services - Incentive Payments,Survey Management,Sodexo Motivation Solutions U.K. ltd,235875,"1,139.84",Survey Response Incentive Vouchers,Large,Programme Expenditure
UK Statistics Family,Office for National Statistics,28/07/2022,Exp - Purchase Of Goods/Services - Incentive Payments,Survey Management,Sodexo Motivation Solutions U.K. ltd,235875,"4,904.79",Survey Response Incentive Vouchers,Large,Programme Expenditure
UK Statistics Family,Office for National Statistics,28/07/2022,Exp - Purchase Of Goods/Services - IT Contractual Services,Strategy And Architecture,Chaucer Group Ltd,235882,"54,909.12",Information Management Services,SME,Programme Expenditure
UK Statistics Family,Office for National Statistics,01/07/2022,Exp - Purchase Of Goods/Services - Incentive Payments,Covid Infection Survey,Sodexo Motivation Solutions U.K. ltd,30003548,"1,106,151.92",Survey Response Incentive Vouchers,Large,Programme Expenditure
UK Statistics Family,Office for National Statistics,01/07/2022,Surveys,Covid Infection Survey,IQVIA Limited,30003549,"14,984,440.40",Statistical Services,Large,Programme Expenditure
UK Statistics Family,Office for National Statistics,01/07/2022,Surveys,Covid Infection Survey,IQVIA Limited,30003549,"522,202.00",Statistical Services,Large,Programme Expenditure
UK Statistics Family,Office for National Statistics,06/07/2022,Surveys,Crime Statistics,Kantar Public UK Ltd.,30003552,"474,045.90",Statistical Services,SME,Programme Expenditure
UK Statistics Family,Office for National Statistics,07/07/2022,Exp - Purchase Of Goods/Services - Incentive Payments,Covid Infection Survey,Sodexo Motivation Solutions U.K. ltd,30003553,"1,026,746.00",Survey Response Incentive Vouchers,Large,Programme Expenditure
UK Statistics Family,Office for National Statistics,11/07/2022,Surveys,Covid Infection Survey,IQVIA Limited,30003555,"5,158,850.90",Statistical Services,Large,Programme Expenditure
UK Statistics Family,Office for National Statistics,14/07/2022,Exp - Purchase Of Goods/Services - Incentive Payments,Covid Infection Survey,Sodexo Motivation Solutions U.K. ltd,30003562,"914,443.61",Survey Response Incentive Vouchers,Large,Programme Expenditure
UK Statistics Family,Office for National Statistics,18/07/2022,Surveys,Covid Infection Survey,IQVIA Limited,30003570,"1,699,553.15",Statistical Services,Large,Programme Expenditure
UK Statistics Family,Office for National Statistics,20/07/2022,Electricity,Property Services,Edf Energy,30003577,"30,379.24",Utility Charges,Large,Programme Expenditure
UK Statistics Family,Office for National Statistics,29/07/2022,Exp - Purchase Of Goods/Services - Incentive Payments,Covid Infection Survey,Sodexo Motivation Solutions U.K. ltd,30003629,"1,101,239.12",Survey Response Incentive Vouchers,Large,Programme Expenditure
,,,,,,,"40,759,350.55",,,
